Cogmind - Beta 14 @@@ ROGUE MODE // 2024.10.17 @ 06:48:49 Player: XDRM Result: Destroyed self with Mini Grenade Launcher Performance ------------- Evolutions (1) 500 Regions Visited (3) 600 Robots Destroyed (27) 135 Value Destroyed (644) 644 Prototype IDs (0) 0 Alien Tech Used (0) 0 Bonus (0) 0 TOTAL SCORE: 1879 Bonus ------- None Cogmind --------- Core Integrity 0/400 Matter 64/300 Energy 100/100 System Corruption 0% Temperature Cool (33) Movement Core (50) Location -9/Materials Parts ------- > --- POWER (1) -------- (None) > --- PROPULSION (2) --- (None) > --- UTILITY (4) ------ Hacking Suite Hacking Suite > --- WEAPON (2) ------- Mini Grenade Launcher > --- INVENTORY (5) ---- Hacking Suite Hacking Suite Hacking Suite Hacking Suite Peak State ------------ > --- POWER ------------ Light Nuclear Core > --- PROPULSION ------- Light Treads Improved Aluminum Leg > --- UTILITY ---------- Hacking Suite Hacking Suite Hacking Suite Hacking Suite > --- WEAPON ----------- Heavy Assault Rifle Mini Grenade Launcher > --- INVENTORY -------- Hacking Suite Hacking Suite Hacking Suite Hacking Suite Light Assault Rifle [Rating: 23] Favorites ----------- Power Ion Engine Engine Ion Engine Power Core Light Nuclear Core Propulsion Light Treads Treads Light Treads Leg Improved Aluminum Leg Utility Hacking Suite Storage Small Storage Unit Processor Targeting Computer Hackware Hacking Suite Protection Hardened Medium Armor Plating Weapon Light Assault Rifle Energy Gun Medium Laser Ballistic Gun Light Assault Rifle Launcher Mini Grenade Launcher Special Weapon Mining Laser Build | -11 -10 -10 -9 ------- Run | Yrd Mat Min Mat Slots Evolved 2 | . . . 2 Power . | . . . . Propulsion . | . . . . Utility 2 | . . . 2 Weapon . | . . . . Parts Attached 22 | 6 . 2 14 Power 2 | 1 . . 1 Engine 1 | 1 . . . Core 1 | . . . 1 Reactor . | . . . . Propulsion 3 | 2 . . 1 Treads 2 | 2 . . . Leg 1 | . . . 1 Wheel . | . . . . Hover . | . . . . Flight . | . . . . Utility 8 | 1 . . 7 Device . | . . . . Storage 1 | 1 . . . Processor 1 | . . . 1 Hackware 5 | . . . 5 Protection 1 | . . . 1 Artifact . | . . . . Weapon 9 | 2 . 2 5 Energy Gun 1 | 1 . . . Energy Cannon . | . . . . Ballistic Gun 4 | 1 . 1 2 Ballistic Cannon . | . . . . Launcher 2 | . . . 2 Special Weapon 2 | . . 1 1 Impact Weapon . | . . . . Slashing Weapon . | . . . . Piercing Weapon . | . . . . Special Melee Weapon . | . . . . Unidentified Prototypes . | . . . . Parts Lost 9 | . . . 9 Power 1 | . . . 1 Propulsion 3 | . . . 3 Utility 3 | . . . 3 Weapon 2 | . . . 2 Highest Loss Streak 7 | . . . 7 To Critical Strikes . | . . . . Average Slot Usage (%) 88 | . 85 85 93 Engine 9 | . 14 14 4 Core 2 | . . . 6 Treads 23 | . 28 28 18 Leg 1 | . . . 2 Storage 7 | . 14 14 . Hackware 16 | . . . 36 Protection 1 | . . . 3 Energy Gun 8 | . 14 14 1 Ballistic Gun 11 | . 14 10 12 Launcher 1 | . . . 3 Special Weapon 3 | . . 3 4 Peak Build Rating 23 | 6 6 6 23 Average Rating 10 | 4 6 6 17 On Entrance 4 | . 6 6 6 Naked Turns . | . . . . Heaviest Build 15 | 13 13 13 15 Greatest Support 40 | 40 40 40 40 Greatest Overweight (x) 1 | . . . 1 Average Overweight (x) . | . . . . Largest Inventory Capacity 8 | 8 8 8 8 Average Capacity 6 | 6 8 8 5 Most Carried 5 | 1 2 5 5 Average Carried 3 | . 1 4 4 Final Capacity 8 | 8 8 8 5 Final Carried 5 | 1 2 5 4 Class Distribution -------------------- 59% | Mutant 40% | Hacker-Mutant Dominant Class ---------------- Mutant | -10/Materials Mutant | -10/Mines Hacker-Mutant | -9/Materials Resources | -11 -10 -10 -9 ----------- Run | Yrd Mat Min Mat Matter Collected 429 | 171 . 126 132 Remotely . | . . . . Salvage Created 618 | . 64 225 329 Parts 47 | . 4 12 31 Haulers Intercepted 1 | . . . 1 Recyclers Shooed . | . . . . Parts Field Recycled . | . . . . Retrieved Matter . | . . . . Parts Self-Destructed . | . . . . Prevented . | . . . . Kills | -11 -10 -10 -9 ------- Run | Yrd Mat Min Mat Combat Hostiles Destroyed 17 | . 1 5 11 Guns 10 | . 1 5 4 AOE 7 | . . . 7 Classes Destroyed 11 | . 2 3 6 Builder 4 | . . . 4 Tunneler 1 | . . 1 . Hauler 1 | . . . 1 Recycler 1 | . . 1 . Mechanic 1 | . . . 1 Operator 1 | . . . 1 Watcher 1 | . 1 . . Swarmer 3 | . . 3 . Grunt 11 | . 1 2 8 Duelist 1 | . . . 1 Sentry 2 | . . . 2 Best Kill Streak 11 | . 2 4 11 Combat Bots Only 7 | . 1 4 7 Max Kills in Single Turn 2 | . 1 1 2 Gunslinging . | . . . . Exploded 2 | . . . 2 Melee . | . . . . Uniques/NPCs Destroyed . | . . . . Combat | -11 -10 -10 -9 -------- Run | Yrd Mat Min Mat Hostile Shots Fired 137 | . 2 21 114 Missed 44 | . . 8 36 Damage Taken 1194 | . 21 132 1041 Core 435 | . . 35 400 Absorbed by Shields . | . . . . Core Remaining (%) 93 | 100 . 86 . Volleys Fired 65 | . 4 24 37 Largest 2 | . 2 2 2 Hottest 150 | . 70 150 100 Shots Fired 122 | . 8 48 66 Gun 92 | . 8 41 43 Cannon . | . . . . Launcher 19 | . . . 19 Special 11 | . . 7 4 Kinetic 62 | . 4 17 41 Thermal 41 | . 4 31 6 Explosive 19 | . . . 19 Electromagnetic . | . . . . Robot Hit Streak 17 | . 6 8 17 Robot Miss Streak 2 | . 2 2 2 Penetration Max . | . . . . Secondary Targets 3 | . 1 1 1 Max Gunslinging Chain 1 | . 1 1 1 Shots Hit Robots 74 | . 6 19 49 Core Hits 50 | . 4 11 35 Critical Kills . | . . . . Critical Parts Destroyed . | . . . . Critical Strikes 1 | . . 1 . Burn 1 | . . 1 . Melee Attacks . | . . . . Impact . | . . . . Slashing . | . . . . Piercing . | . . . . Sneak Attacks . | . . . . Combat Hostiles . | . . . . Follow-up Attacks . | . . . . Damage Inflicted 2133 | . 65 215 1853 Guns 692 | . 63 191 438 Cannons . | . . . . Explosions 1391 | . . . 1391 Melee . | . . . . Ramming 2 | . 2 . . Kinetic 489 | . 25 52 412 Thermal 251 | . 38 163 50 Explosive 1391 | . . . 1391 Electromagnetic . | . . . . Impact . | . . . . Slashing . | . . . . Piercing . | . . . . Highest Corruption . | . . . . Average Corruption . | . . . . Corruption Purged . | . . . . Corruption Blocked . | . . . . Overload Shots . | . . . . Overflow Damage 18 | . . . 18 Projectiles . | . . . . Explosions 18 | . . . 18 Melee . | . . . . Knockbacks . | . . . . Impact . | . . . . Kinetic . | . . . . Secondary . | . . . . Self-Inflicted Damage 14 | . . . 14 Shots 1 | . . . 1 Rammed 1 | . 1 . . Targets Rammed 1 | . 1 . . Kicked . | . . . . Crushed . | . . . . Highest Temperature 150 | . 76 150 40 Average Temperature 37 | . 34 55 12 Received Heat Transfer 534 | . 12 57 465 Siege Activations . | . . . . Robots Corrupted . | . . . . Combat Hostiles . | . . . . Parts Fried . | . . . . Impact Corruptions . | . . . . Robots Melted . | . . . . Combat Hostiles . | . . . . Parts Melted . | . . . . Heat Transferred 766 | . 111 531 124 Parts Sabotaged . | . . . . Parts Stolen . | . . . . Parts Stripped . | . . . . Power Chain Reactions . | . . . . Alert | -11 -10 -10 -9 ------- Run | Yrd Mat Min Mat Peak Influence 386 | . 52 139 386 Initial 53 | . . 19 53 Average 68 | . 22 38 131 Maximum Alert Level 1 | . . . 1 Low Security (%) 93 | 100 100 100 82 Level 1 6 | . . . 17 Level 2 . | . . . . Level 3 . | . . . . Level 4 . | . . . . Level 5 . | . . . . High Security . | . . . . Max Security . | . . . . Squads Dispatched 6 | . 2 . 4 Investigation 3 | . 1 . 2 Extermination . | . . . . Reinforcement 3 | . 1 . 2 Assault . | . . . . Garrison . | . . . . Intercept . | . . . . Searches Triggered . | . . . . Construction Impeded 1 | . . . 1 Haulers Reinforced . | . . . . Active Scanning Responses . | . . . . Cargo Convoy Interrupts . | . . . . Stealth | -11 -10 -10 -9 --------- Run | Yrd Mat Min Mat Distress Signals 3 | . 1 . 2 Communications Jammed . | . . . . Distress Signals . | . . . . Times Spotted 33 | . 3 7 23 Peak Tracking Total 10 | . 3 3 10 Tactical Retreats 1 | . . . 1 Traps | -11 -10 -10 -9 ------- Run | Yrd Mat Min Mat Traps Triggered . | . . . . Indirectly . | . . . . Trap Hack Attempts . | . . . . Triggered . | . . . . Disarmed . | . . . . Reprogrammed . | . . . . Reused . | . . . . Traps Extracted . | . . . . Installed . | . . . . Triggered . | . . . . Machines | -11 -10 -10 -9 ---------- Run | Yrd Mat Min Mat Machines Disabled 1 | . . . 1 Max in Single Turn 1 | . . . 1 Machines Repaired . | . . . . Machines Dismantled . | . . . . Machines Sabotaged . | . . . . Overloaded Fab Kills . | . . . . Hacking | -11 -10 -10 -9 --------- Run | Yrd Mat Min Mat Machines Accessed 4 | . 1 . 3 Terminals 4 | . 1 . 3 Fabricators . | . . . . Repair Stations . | . . . . Recycling Units . | . . . . Scanalyzers . | . . . . Garrison Access . | . . . . Total Hacks 17 | . 4 . 13 Successful 9 | . 2 . 7 Failed 8 | . 2 . 6 Catastrophic 4 | . 2 . 2 Database Lockouts . | . . . . Manual 11 | . 2 . 9 Terminals 17 | . 4 . 13 Fabricators . | . . . . Repair Stations . | . . . . Recycling Units . | . . . . Scanalyzers . | . . . . Garrison Access . | . . . . Terminal Hacks 9 | . 2 . 7 Robot Analysis 2 | . 1 . 1 Machine Index 1 | . . . 1 Alert Level 1 | . . . 1 Unreport Threat 2 | . . . 2 Reprogram Traps 1 | . . . 1 Hauler Manifests 1 | . 1 . . Zone Layout 1 | . . . 1 Fabricator Hacks . | . . . . Repair Station Hacks . | . . . . Recycling Unit Hacks . | . . . . Scanalyzer . | . . . . Garrison Access Hacks . | . . . . Unauthorized Hacks . | . . . . Terminals . | . . . . Fabricators . | . . . . Repair Stations . | . . . . Recycling Units . | . . . . Scanalyzers . | . . . . Garrison Access . | . . . . Data Cores Recovered 1 | . . . 1 Used 1 | . . . 1 Hacking Detections 4 | . 1 . 3 Full Trace Events 3 | . 1 . 2 Feedback Events . | . . . . Feedback Blocked . | . . . . Robot Schematics Acquired . | . . . . Robots Built . | . . . . Authchips . | . . . . Time . | . . . . Total Robot Build Rating . | . . . . Part Schematics Acquired . | . . . . Parts Built . | . . . . Authchips . | . . . . Time . | . . . . Total Part Build Rating . | . . . . Parts Repaired . | . . . . Time . | . . . . Parts Recycled . | . . . . Recycled Matter . | . . . . Retrieved Matter . | . . . . Retrieved Components . | . . . . Parts Scanalyzed . | . . . . Part Schematics Acquired . | . . . . Parts Damaged . | . . . . Bothacking | -11 -10 -10 -9 ------------ Run | Yrd Mat Min Mat Used RIF Installer . | . . . . Robots Hacked . | . . . . Non-combat . | . . . . Combat . | . . . . Robot Hacks Applied . | . . . . Relay Couplers Released . | . . . . Fabnet Peak Effective % . | . . . . Robots Rewired . | . . . . Allies Hacked . | . . . . Hacks Repelled . | . . . . Allies | -11 -10 -10 -9 -------- Run | Yrd Mat Min Mat Total Allies . | . . . . Largest Group . | . . . . Highest-Rated Group . | . . . . Highest-Rated Ally . | . . . . Total Orders . | . . . . Ally Attacks . | . . . . Total Damage . | . . . . Kills . | . . . . Allies Corrupted . | . . . . Allies Melted . | . . . . Intel | -11 -10 -10 -9 ------- Run | Yrd Mat Min Mat Robot Analysis Total 2 | . 1 . 1 Derelict Logs Recovered 1 | . . 1 . Drone Launches . | . . . . Drone Recoveries . | . . . . Exploration | -11 -10 -10 -9 ------------- Run | Yrd Mat Min Mat Turns Passed 805 | 80 177 222 326 Spaces Moved 354 | 47 97 84 126 Core 6 | 4 . . 2 Treads 323 | 43 97 84 99 Legs 25 | . . . 25 Wheels . | . . . . Hover . | . . . . Flight . | . . . . Fastest Speed 50 | 50 160 160 50 Average Speed 155 | 150 160 160 150 Slowest Speed 160 | 160 160 160 160 Overloaded Moves . | . . . . Propulsion Burnouts . | . . . . Robots Hopped . | . . . . Cave-ins Triggered . | . . . . Exploration Rate (%) 18 | 4 23 33 14 Regions Visited 3 Branch Regions 1 Pre-discovered Areas 1 | . . 1 . Known Exits Taken . | . . . . Unknown Exits Taken 3 | 1 1 1 . Scrap Searched 1 | . . 1 . Spaces Dug 3 | . . . 3 Terrain Destroyed 85 | . . . 85 Melee . | . . . . Projectile 3 | . . . 3 AOE 82 | . . . 82 Terrain Rammed . | . . . . Walls Destroyed . | . . . . Machines Disabled . | . . . . Actions | -11 -10 -10 -9 --------- Run | Yrd Mat Min Mat Total 470 | 53 111 112 194 Wait 9 | . 9 . . Move 351 | 46 96 83 126 Hop . | . . . . Pick Up 13 | 1 1 3 8 Fast Attach 11 | 6 . . 5 Attach 5 | . . . 5 Detach . | . . . . Swap 6 | . . 2 4 Drop 9 | . . . 9 Fire 65 | . 4 24 37 Melee . | . . . . Ram . | . . . . Kick . | . . . . Crush 1 | . 1 . . Escape Stasis . | . . . . Rewire . | . . . . Trap . | . . . . Miscellaneous . | . . . . Route ------- -11/Scrapyard -10/Materials -10/Mines -9/Materials History --------- Turn | Location | Event 3 | -11/Scrapyard | Discovered new exit (range 15) 81 | -11/Scrapyard | Entered Materials 197 | -10/Materials | Met 8R-AWN 250 | -10/Materials | Discovered new exit (range 6) 258 | -10/Materials | Entered Mines 261 | -10/Mines | Followed 8R-AWN into the Mines 266 | -10/Mines | Met a Derelict bent on vengeance 299 | -10/Mines | Learned location of Storage (-8) 310 | -10/Mines | Build established: Mutant 334 | -10/Mines | Excavation squad dispatched 334 | -10/Mines | A large section of the Mines collapsed 457 | -10/Mines | Discovered new exit (range 8) 480 | -10/Mines | Entered Materials 480 | -9/Materials | Evolved 2 slots: Utility x2 753 | -9/Materials | Destroyed 7 combat bots 781 | -9/Materials | Core integrity fell below 50% 788 | -9/Materials | Build established: Hacker-Mutant 804 | -9/Materials | Core integrity fell below 20% 806 | -9/Materials | Destroyed self with Mini Grenade Launcher Last Messages --------------- 00764_ Acquired Hvy. Assault Rifle. 00772_ G-34 Mercenary destroyed. 00778_ M-13 Machinist destroyed. 00778_ K-01 Serf collects debris. 00783_ Lgt. Nuclear Core destroyed. 00787_ G-34 Mercenary destroyed. 00787_ Switching to secondary target: Y-45 Defender. 00789_ Critical hit (Burn: +37). 00792_ Imp. Aluminum Leg destroyed. 00795_ Lgt. Treads destroyed. 00799_ Hvy. Assault Rifle destroyed. 00800_ Acquired 73 matter. 00802_ Hvy. Assault Rifle destroyed. 00803_ Hacking Suite destroyed. 00804_ G-34 Mercenary destroyed. 00805_ K-01 Serf collects debris. 00806_ Critical hit (Burn: +37). 00806_ Hacking Suite destroyed. 00806_ A-02 Transporter destroyed. Map ----- +----------------------------------------------------+ | ????????#####????????????????????????????????????? | | ##########??#????????????????????????????????????? | | # [ ##??#????????????????????????????????????? | | # *!*##??#???????###??????????????????????????? | | # #???#??????? #????????????????????????? | | / ! #???#??????? #????????????????????????? | | # !#???#?????? #????????????????????????? | | # !!#???#?????? ?????????????????????????? | | # #####???#?????? ?????????????????????????? | | # #########??????# #?????????????????????????? | | # # #??????# #?????????????????????????? | | # # """ *#??????# #?????????????????????????? | | + + """ #??????# #?????????????????????????? | | # # """ #??????# #?????????????????????????? | | # # #??????# #?????????????????????????? | | # ## # ####?????## ##????????????????????????? | | #### ######## #????????????????????????? | | %| #????????????????????????? | | [ = = T #????????????????????????? | | ! #????????????????????????? | | | = #= ####+### #????????????????????????? | | # # ## ##????????????????????????? | | % ## #?????????????????????????? | | * ## #?????????????????????????? | | % ##g= ##+#######???????????????? | | ## ## !Y![@*""" ??????????????? | | %[ # ##=!%!*!="R" ??????????????? | | # " ## ![![! " " ??????????????? | | # ### *[[! ##???????????????? | | [[ ! #???????????????? | | ? r ???????????????? | | *g #??????????????? | | +####### ### #####+## %% #??????????????? | | ???????# #?# ???? ? ##??????????????? | | ???????" ?# ?????"" ? ???????????????? | | ???????? ?#+##?????"""? """ ???????????????? | | ???????? ???????????"""? k"T" "??????????????? | | ????????????????????????"? # ??? "??????????????? | | ?????????????????????????? ? ???????????????????? | | ?????????????????????????? ? ???????????????????? | | ?????????????????????????????????????????????????? | | ?????????????????????????????????????????????????? | | ?????????????????????????????????????????????????? | | ?????????????????????????????????????????????????? | | ?????????????????????????????????????????????????? | | ?????????????????????????????????????????????????? | | ?????????????????????????????????????????????????? | | ?????????????????????????????????????????????????? | | ?????????????????????????????????????????????????? | | ?????????????????????????????????????????????????? | +----------------------------------------------------+ Best States ------------- Heat Dissipation 28 Energy Generation 14 Energy Capacity 250 Matter Stores 300 Matter Capacity 300 Sight Range 16 Terrain Scan Density 10 Armor Coverage 225 Evasion (%) 55 Targeting Accuracy 5 Recoil Reduction 2 Offensive Hacking 40 Item Schematics ----------------- None Robot Schematics ------------------ None Fabricated ------------ Nothing Alien Tech Used ----------------- None Achievements -------------- None Challenges ------------ None Game ------ Seed WarpMeleeBlade Manual? 0 Play Time 00:14:01 Cumulative 36.5 hours Start 2024.10.17 @ 06:34:38 End 2024.10.17 @ 06:48:49 Sessions 1 Manual Loads 0 Difficulty Rogue Special Mode None Game No. 24 Rogue 24 Adventurer 0 Explorer 0 Win Type - Total 0 Types 0/0/0/0/0/0/0/0/0 Lore% 15 Gallery% 27 Achievement% 28 Wizard Run 0 Options --------- Layout 1 ASCII 0 Keyboard 0 Movement Mouse Keybinds 0 Fullscreen 2 Font 24/X11 Map View 50x35 Zoom Use 0% Tactical HUD 1 Map Filters NONE Filters NONE Steam 1 RUN: 4ca47da4-ebb0-40da-8b28-994d5c0dabf5